[Event "9th RTU Rapid 2019"]
[Site "Riga"]
[Date "2019.08.04"]
[Round "3.23"]
[White "Ciolek, Andreas"]
[Black "Mohite, Ranveer"]
[Result "0-1"]
[WhiteElo "2158"]
[BlackElo "1935"]
[PlyCount "110"]
[EventDate "2019.08.05"]
[EventType "swiss"]
[EventCountry "LAT"]
[TimeControl "5400+30"]
[WhiteClock "0:00:42"]
[BlackClock "0:00:49"]

1. e4 {[%emt 1:15:22]} e5 {[%emt 1:15:24]} 2. Nf3 {[%emt 0:00:31]} Nc6 {[%emt 0:00:27]} 3. Bb5 {[%emt 0:00:46]} a6 {[%emt 0:00:28]} 4. Ba4 {[%emt 0:00:26]} Nf6 {[%emt 0:00:28]} 5. O-O {[%emt 0:00:59]} Be7 {[%emt 0:00:27]} 6. Re1 {[%emt 0:00:30]} b5 {[%emt 0:00:28]} 7. Bb3 {[%emt 0:00:26]} d6 {[%emt 0:00:27]} 8. c3 {[%emt 0:00:28]} O-O {[%emt 0:00:28]} 9. h3 {[%emt 0:00:27]} Nb8 {[%emt 0:00:32]} 10. d4 {[%emt 0:00:32]} Nbd7 {[%emt 0:00:28]} 11. Nbd2 {[%emt 0:00:28]} Bb7 {[%emt 0:00:43]} 12. d5 {[%emt 0:00:51]} Re8 {[%emt 0:00:54]} 13. Nf1 {[%emt 0:00:28]} Bf8 {[%emt 0:00:28]} 14. Ng3 {[%emt 0:00:30]} g6 {[%emt 0:00:30]} 15. Bc2 {[%emt 0:00:32]} c6 {[%emt 0:00:38]} 16. dxc6 {[%emt 0:01:00]} Bxc6 {[%emt 0:00:27]} 17. a4 {[%emt 0:00:34]} Nc5 {[%emt 0:01:13]} 18. axb5 {[%emt 0:00:42]} axb5 {[%emt 0:00:28]} 19. Rxa8 {[%emt 0:00:33]} Qxa8 {[%emt 0:00:35]} 20. Nd2 {[%emt 0:00:52]} Bg7 {[%emt 0:01:24]} 21. b4 {[%emt 0:02:39]} Na4 {[%emt 0:00:57]} 22. c4 {[%emt 0:00:27]} Nb6 {[%emt 0:03:27]} 23. cxb5 {[%emt 0:00:54]} Bxb5 {[%emt 0:00:29]} 24. Nb3 {[%emt 0:00:53]} d5 {[%emt 0:00:56]} 25. exd5 {[%emt 0:00:30]} Nfxd5 {[%emt 0:01:00]} 26. Be4 {[%emt 0:00:55]} f5 {[%emt 0:01:13]} 27. Bf3 {[%emt 0:01:40]} e4 {[%emt 0:00:59]} 28. Be2 {[%emt 0:00:26]} Nc3 {[%emt 0:01:39]} 29. Qd6 {[%emt 0:00:27]} Nxe2+ {[%emt 0:01:01]} 30. Nxe2 {[%emt 0:00:27]} Qd5 {[%emt 0:02:46]} 31. Qxb6 {[%emt 0:02:01]} Bxe2 {[%emt 0:00:27]} 32. Qe3 {[%emt 0:01:07]} Bc4 {[%emt 0:01:08]} 33. Na5 {[%emt 0:00:45]} Bb5 {[%emt 0:00:34]} 34. Bd2 {[%emt 0:01:03]} Rc8 {[%emt 0:00:48]} 35. Rc1 {[%emt 0:02:26]} Rxc1+ 36. Bxc1 {[%emt 0:00:26]} Qd1+ {[%emt 0:00:53]} 37. Kh2 {[%emt 0:00:25]} Be5+ {[%emt 0:01:29]} 38. g3 {[%emt 0:00:29]} Be2 {[%emt 0:01:20]} 39. Qb3+ {[%emt 0:01:14]} Qxb3 {[%emt 0:00:27]} 40. Nxb3 {[%emt 0:00:26]} Bc4 {[%emt 0:00:50]} 41. Na5 {[%emt 0:00:32]} Bb5 {[%emt 0:00:37]} 42. Bd2 {[%emt 0:00:26]} Kf7 {[%emt 0:00:28]} 43. Kg2 {[%emt 0:02:09]} Ke6 {[%emt 0:00:26]} 44. f3 {[%emt 0:00:32]} Kd5 {[%emt 0:00:35]} 45. g4 {[%emt 0:00:41]} Kd4 {[%emt 0:00:48]} 46. gxf5 {[%emt 0:00:38]} gxf5 {[%emt 0:00:26]} 47. fxe4 {[%emt 0:00:27]} fxe4 {[%emt 0:00:26]} 48. Kf2 {[%emt 0:00:28]} Kd3 {[%emt 0:00:27]} 49. Be3 {[%emt 0:00:34]} Bf6 {[%emt 0:00:28]} 50. Bc5 {[%emt 0:01:10]} Bh4+ {[%emt 0:00:26]} 51. Kg2 {[%emt 0:00:29]} e3 {[%emt 0:00:28]} 52. Kf3 {[%emt 0:00:38]} e2 {[%emt 0:00:34]} 53. Bf2 {[%emt 0:00:28]} Bxf2 {[%emt 0:00:26]} 54. Kxf2 {[%emt 0:00:26]} Kd2 {[%emt 0:00:27]} 55. Nb3+ {[%emt 0:00:26]} Kd1 {[%emt 0:00:26]} 0-1

[Event "9th RTU Rapid 2019"]
[Site "Riga"]
[Date "2019.08.04"]
[Round "3.24"]
[White "Stabulnieks, Klavs"]
[Black "Ivbulis, Martins"]
[Result "1-0"]
[WhiteElo "2136"]
[BlackElo "1768"]
[PlyCount "105"]
[EventDate "2019.08.05"]
[EventType "swiss"]
[EventCountry "LAT"]
[TimeControl "5400+30"]
[WhiteClock "0:01:19"]
[BlackClock "0:02:44"]

1. d4 {[%emt 1:15:22]} d5 {[%emt 1:15:22]} 2. c4 {[%emt 0:00:37]} e6 {[%emt 0:00:26]} 3. Nc3 {[%emt 0:00:26]} a6 {[%emt 0:00:27]} 4. g3 {[%emt 0:00:42]} Nf6 {[%emt 0:01:04]} 5. Bg2 {[%emt 0:00:30]} dxc4 {[%emt 0:01:19]} 6. Nf3 {[%emt 0:01:19]} c6 {[%emt 0:00:44]} 7. Ne5 {[%emt 0:00:35]} Qc7 {[%emt 0:01:23]} 8. Nxc4 {[%emt 0:00:36]} b5 {[%emt 0:00:37]} 9. Bf4 {[%emt 0:00:32]} Qd8 {[%emt 0:00:49]} 10. Bxb8 {[%emt 0:00:59]} Rxb8 {[%emt 0:00:37]} 11. Bxc6+ {[%emt 0:00:27]} Bd7 {[%emt 0:00:26]} 12. Ne5 {[%emt 0:00:27]} b4 {[%emt 0:01:08]} 13. Nxd7 {[%emt 0:00:41]} Nxd7 {[%emt 0:00:31]} 14. Ne4 {[%emt 0:00:51]} f5 {[%emt 0:02:36]} 15. Nc5 {[%emt 0:01:13]} Bxc5 {[%emt 0:00:26]} 16. dxc5 {[%emt 0:00:27]} Qc7 {[%emt 0:00:39]} 17. Qa4 {[%emt 0:01:19]} Ke7 {[%emt 0:00:35]} 18. Bxd7 {[%emt 0:00:40]} Qxd7 {[%emt 0:00:27]} 19. Qxa6 {[%emt 0:00:47]} Rhc8 {[%emt 0:00:49]} 20. Rd1 {[%emt 0:00:34]} Qc6 {[%emt 0:00:33]} 21. Qxc6 {[%emt 0:00:59]} Rxc6 {[%emt 0:00:26]} 22. O-O {[%emt 0:01:42]} Rxc5 {[%emt 0:00:32]} 23. Rd2 {[%emt 0:00:27]} Rbc8 {[%emt 0:00:32]} 24. Rfd1 {[%emt 0:00:35]} Rc2 {[%emt 0:01:07]} 25. Kg2 {[%emt 0:00:30]} Kf6 {[%emt 0:00:36]} 26. Kf3 {[%emt 0:00:35]} Ke5 {[%emt 0:01:05]} 27. Ke3 {[%emt 0:00:33]} g5 {[%emt 0:00:30]} 28. Rxc2 {[%emt 0:01:08]} Rxc2 {[%emt 0:00:27]} 29. Rd2 {[%emt 0:00:27]} Rc4 {[%emt 0:01:14]} 30. Kd3 {[%emt 0:00:37]} Kd5 {[%emt 0:01:26]} 31. e3 {[%emt 0:00:37]} g4 {[%emt 0:00:43]} 32. Rc2 {[%emt 0:00:30]} Re4 {[%emt 0:01:37]} 33. Rc7 {[%emt 0:00:59]} h5 {[%emt 0:00:36]} 34. Rd7+ {[%emt 0:01:41]} Kc5 {[%emt 0:00:35]} 35. Rh7 {[%emt 0:00:45]} Kb5 {[%emt 0:01:26]} 36. Rxh5 {[%emt 0:00:33]} b3 {[%emt 0:00:27]} 37. axb3 {[%emt 0:00:42]} Kb4 {[%emt 0:00:26]} 38. Rh7 {[%emt 0:00:57]} Kxb3 {[%emt 0:01:05]} 39. Rb7+ {[%emt 0:00:28]} Ka4 {[%emt 0:00:26]} 40. Kc3 {[%emt 0:00:45]} Ka5 {[%emt 0:00:51]} 41. Rd7 {[%emt 0:01:38]} Kb5 {[%emt 0:01:12]} 42. b3 {[%emt 0:00:37]} Kc5 {[%emt 0:00:31]} 43. Rb7 {[%emt 0:01:07]} Re5 {[%emt 0:00:48]} 44. b4+ {[%emt 0:00:44]} Kc6 {[%emt 0:00:26]} 45. Ra7 {[%emt 0:00:35]} Re4 {[%emt 0:00:43]} 46. Ra5 {[%emt 0:00:37]} Kb6 {[%emt 0:00:39]} 47. Ra8 {[%emt 0:00:49]} Kb7 {[%emt 0:00:32]} 48. Rh8 {[%emt 0:00:28]} Kc6 {[%emt 0:00:28]} 49. h4 {[%emt 0:00:39]} gxh3 {[%emt 0:00:27]} 50. Rxh3 {[%emt 0:00:27]} Kb5 {[%emt 0:00:43]} 51. Rh4 {[%emt 0:00:28]} Re5 {[%emt 0:00:26]} 52. Rd4 {[%emt 0:00:32]} Kc6 {[%emt 0:00:41]} 53. Kc4 {[%emt 0:00:31]} 1-0

[Event "9th RTU Rapid 2019"]
[Site "Riga"]
[Date "2019.08.04"]
[Round "3.25"]
[White "Indricans, Vadims"]
[Black "Smirnova, Ekaterina"]
[Result "1/2-1/2"]
[WhiteElo "1878"]
[BlackElo "2134"]
[PlyCount "43"]
[EventDate "2019.08.05"]
[EventType "swiss"]
[EventCountry "LAT"]
[TimeControl "5400+30"]
[WhiteClock "0:07:40"]
[BlackClock "0:10:40"]

1. e4 {[%emt 1:15:22]} e6 {[%emt 1:15:21]} 2. d4 {[%emt 0:00:37]} d5 {[%emt 0:00:26]} 3. Nd2 {[%emt 0:00:26]} c5 {[%emt 0:00:26]} 4. c3 {[%emt 0:00:27]} cxd4 {[%emt 0:00:34]} 5. cxd4 {[%emt 0:00:26]} dxe4 {[%emt 0:00:27]} 6. Nxe4 {[%emt 0:00:30]} Nc6 {[%emt 0:00:27]} 7. Nf3 {[%emt 0:00:27]} Nf6 {[%emt 0:01:00]} 8. Nc3 {[%emt 0:00:36]} Be7 {[%emt 0:00:36]} 9. Bb5 {[%emt 0:00:39]} O-O {[%emt 0:00:29]} 10. O-O {[%emt 0:01:06]} a6 {[%emt 0:00:27]} 11. Ba4 {[%emt 0:00:27]} b5 {[%emt 0:00:39]} 12. Bb3 {[%emt 0:00:26]} Nb4 {[%emt 0:00:43]} 13. Bg5 {[%emt 0:01:03]} Bb7 {[%emt 0:00:30]} 14. Re1 {[%emt 0:01:18]} Bxf3 {[%emt 0:01:56]} 15. Qxf3 {[%emt 0:01:39]} Qxd4 {[%emt 0:00:56]} 16. Rad1 {[%emt 0:00:28]} Qa7 {[%emt 0:02:12]} 17. a3 {[%emt 0:00:59]} Nbd5 {[%emt 0:01:27]} 18. Nxd5 {[%emt 0:00:33]} exd5 {[%emt 0:00:50]} 19. Bxd5 {[%emt 0:01:27]} Nxd5 {[%emt 0:00:40]} 20. Qxd5 {[%emt 0:00:27]} Rad8 {[%emt 0:01:57]} 21. Qe5 {[%emt 0:00:27]} Bxg5 {[%emt 0:00:47]} 22. Qxg5 {[%emt 0:00:15]} 1/2-1/2

[Event "9th RTU Rapid 2019"]
[Site "Riga"]
[Date "2019.08.04"]
[Round "3.26"]
[White "Bogorad, Michail"]
[Black "Nevednichy, Vladislav"]
[Result "0-1"]
[WhiteElo "1840"]
[BlackElo "2495"]
[PlyCount "66"]
[EventDate "2019.08.05"]
[EventType "swiss"]
[EventCountry "LAT"]
[TimeControl "5400+30"]
[WhiteClock "0:06:09"]
[BlackClock "0:00:58"]

1. e4 {[%emt 1:15:21]} c5 {[%emt 1:15:28]} 2. Nc3 {[%emt 0:00:30]} Nc6 {[%emt 0:00:27]} 3. d3 {[%emt 0:00:29]} g6 {[%emt 0:00:28]} 4. Be3 {[%emt 0:00:29]} d6 {[%emt 0:00:28]} 5. d4 {[%emt 0:00:31]} cxd4 {[%emt 0:00:30]} 6. Bxd4 {[%emt 0:00:27]} Nxd4 {[%emt 0:00:42]} 7. Qxd4 {[%emt 0:00:30]} Nf6 {[%emt 0:00:28]} 8. e5 {[%emt 0:00:32]} dxe5 {[%emt 0:00:28]} 9. Bb5+ {[%emt 0:00:29]} Bd7 {[%emt 0:00:27]} 10. Qxe5 {[%emt 0:00:29]} Bc6 {[%emt 0:06:16]} 11. Rd1 {[%emt 0:02:52]} Qb8 {[%emt 0:00:28]} 12. Nf3 {[%emt 0:01:04]} Bg7 {[%emt 0:00:28]} 13. O-O {[%emt 0:00:35]} O-O {[%emt 0:00:32]} 14. Bxc6 {[%emt 0:00:34]} bxc6 {[%emt 0:00:26]} 15. Qxb8 {[%emt 0:01:17]} Rfxb8 {[%emt 0:00:27]} 16. b3 {[%emt 0:00:41]} e6 {[%emt 0:00:43]} 17. Na4 {[%emt 0:00:37]} Nd5 {[%emt 0:00:28]} 18. c4 {[%emt 0:01:17]} Nc3 {[%emt 0:00:55]} 19. Nxc3 {[%emt 0:00:30]} Bxc3 {[%emt 0:00:26]} 20. Rd3 {[%emt 0:00:35]} Bf6 {[%emt 0:00:29]} 21. Rfd1 {[%emt 0:00:27]} a5 {[%emt 0:00:27]} 22. Nd4 {[%emt 0:00:33]} Ra6 {[%emt 0:01:17]} 23. g3 {[%emt 0:00:55]} a4 {[%emt 0:00:30]} 24. Nc2 {[%emt 0:02:25]} axb3 {[%emt 0:00:50]} 25. axb3 {[%emt 0:00:33]} Ra2 {[%emt 0:00:36]} 26. Ne3 {[%emt 0:01:42]} h5 {[%emt 0:00:30]} 27. Rb1 {[%emt 0:00:45]} c5 {[%emt 0:00:33]} 28. g4 {[%emt 0:01:10]} hxg4 {[%emt 0:00:29]} 29. Nxg4 {[%emt 0:00:27]} Bg7 {[%emt 0:01:59]} 30. Rbd1 {[%emt 0:01:10]} Bd4 {[%emt 0:00:29]} 31. Rf3 {[%emt 0:00:32]} f5 {[%emt 0:00:31]} 32. Nh6+ {[%emt 0:04:38]} Kg7 {[%emt 0:00:30]} 33. Rh3 {[%emt 0:00:26]} Bxf2+ {[%emt 0:00:36]} 0-1

[Event "9th RTU Rapid 2019"]
[Site "Riga"]
[Date "2019.08.04"]
[Round "3.27"]
[White "Maklakova, Nellija"]
[Black "Kiik, Kalle"]
[Result "1-0"]
[WhiteElo "1877"]
[BlackElo "2308"]
[PlyCount "56"]
[EventDate "2019.08.05"]
[EventType "swiss"]
[EventCountry "LAT"]
[TimeControl "5400+30"]
[WhiteClock "0:09:13"]
[BlackClock "0:09:45"]

1. c4 {[%emt 0:09:17]} e5 {[%emt 0:00:09]} 2. Nc3 {[%emt 1:06:41]} Nf6 {[%emt 1:15:49]} 3. Nf3 {[%emt 0:00:32]} Nc6 {[%emt 0:00:32]} 4. e3 {[%emt 0:00:27]} g6 {[%emt 0:01:09]} 5. d4 {[%emt 0:00:32]} d6 {[%emt 0:00:39]} 6. d5 {[%emt 0:00:34]} Ne7 {[%emt 0:00:43]} 7. e4 {[%emt 0:00:43]} Bg7 {[%emt 0:00:28]} 8. Be2 {[%emt 0:00:26]} O-O {[%emt 0:00:31]} 9. Bd2 {[%emt 0:00:38]} c6 {[%emt 0:00:44]} 10. O-O {[%emt 0:00:37]} h6 {[%emt 0:00:36]} 11. Qc1 {[%emt 0:00:36]} Kh7 {[%emt 0:00:29]} 12. Nh4 {[%emt 0:00:27]} cxd5 {[%emt 0:01:03]} 13. exd5 {[%emt 0:00:38]} Nd7 {[%emt 0:00:48]} 14. g3 {[%emt 0:00:51]} f5 {[%emt 0:00:41]} 15. Qc2 {[%emt 0:00:45]} Nf6 {[%emt 0:00:39]} 16. Rac1 {[%emt 0:00:33]} Bd7 {[%emt 0:00:40]} 17. b4 {[%emt 0:00:34]} b6 {[%emt 0:00:39]} 18. Rfe1 {[%emt 0:01:07]} Rc8 {[%emt 0:00:31]} 19. Bf1 {[%emt 0:00:28]} e4 {[%emt 0:00:59]} 20. Ng2 {[%emt 0:00:31]} g5 {[%emt 0:00:42]} 21. g4 {[%emt 0:00:38]} Nxg4 {[%emt 0:01:24]} 22. Nxe4 {[%emt 0:00:55]} fxe4 {[%emt 0:00:44]} 23. Qxe4+ {[%emt 0:00:27]} Ng6 {[%emt 0:00:34]} 24. f3 {[%emt 0:02:59]} N4e5 {[%emt 0:00:52]} 25. f4 {[%emt 0:00:37]} Bf5 {[%emt 0:00:52]} 26. Qe3 {[%emt 0:00:42]} gxf4 {[%emt 0:00:43]} 27. Nxf4 {[%emt 0:00:32]} Nxf4 {[%emt 0:00:37]} 28. Qxf4 {[%emt 0:00:28]} Bg6 {[%emt 0:00:30]} 1-0

[Event "9th RTU Rapid 2019"]
[Site "Riga"]
[Date "2019.08.04"]
[Round "3.28"]
[White "Jeet, Jain"]
[Black "Mohammad Nubairshah Shaikh"]
[Result "1/2-1/2"]
[WhiteElo "1828"]
[BlackElo "2278"]
[PlyCount "127"]
[EventDate "2019.08.05"]
[EventType "swiss"]
[EventCountry "LAT"]
[TimeControl "5400+30"]
[WhiteClock "0:00:12"]
[BlackClock "0:00:18"]

1. e4 {[%emt 1:15:23]} c6 {[%emt 1:15:30]} 2. d4 {[%emt 0:00:28]} d5 {[%emt 0:00:26]} 3. e5 {[%emt 0:00:27]} c5 {[%emt 0:00:26]} 4. dxc5 {[%emt 0:00:29]} e6 {[%emt 0:00:27]} 5. Be3 {[%emt 0:01:06]} Nd7 {[%emt 0:00:26]} 6. Nf3 {[%emt 0:00:37]} Bxc5 {[%emt 0:00:37]} 7. Bxc5 {[%emt 0:00:42]} Nxc5 {[%emt 0:00:26]} 8. Nbd2 {[%emt 0:00:27]} Ne7 {[%emt 0:01:21]} 9. Nb3 {[%emt 0:02:24]} Nxb3 {[%emt 0:04:31]} 10. axb3 {[%emt 0:00:26]} Nc6 {[%emt 0:00:25]} 11. Bd3 {[%emt 0:00:54]} O-O {[%emt 0:01:36]} 12. O-O {[%emt 0:00:31]} f6 {[%emt 0:03:36]} 13. Qe2 {[%emt 0:00:42]} Nb4 {[%emt 0:00:29]} 14. Rae1 {[%emt 0:01:05]} Bd7 {[%emt 0:02:59]} 15. c3 {[%emt 0:01:08]} Nxd3 {[%emt 0:00:28]} 16. Qxd3 {[%emt 0:00:27]} Qc7 {[%emt 0:00:51]} 17. Re3 {[%emt 0:00:47]} Rae8 {[%emt 0:02:48]} 18. Rfe1 {[%emt 0:00:37]} a6 {[%emt 0:00:44]} 19. Qd4 {[%emt 0:01:35]} Bc8 {[%emt 0:00:33]} 20. g3 {[%emt 0:01:47]} Re7 {[%emt 0:00:44]} 21. Qg4 {[%emt 0:01:01]} Ref7 {[%emt 0:00:33]} 22. R1e2 {[%emt 0:01:19]} h6 {[%emt 0:00:39]} 23. exf6 {[%emt 0:00:49]} Rxf6 {[%emt 0:00:26]} 24. Ne5 {[%emt 0:00:35]} Qb6 {[%emt 0:00:33]} 25. Qd4 {[%emt 0:00:34]} Qxb3 {[%emt 0:00:38]} 26. Kg2 {[%emt 0:01:01]} Qb5 {[%emt 0:00:32]} 27. Nd3 {[%emt 0:00:49]} Qc6 {[%emt 0:00:33]} 28. Ne5 {[%emt 0:00:35]} Qc7 {[%emt 0:00:26]} 29. h4 {[%emt 0:00:33]} b6 {[%emt 0:00:27]} 30. Nd3 {[%emt 0:00:42]} a5 {[%emt 0:00:29]} 31. f4 {[%emt 0:01:11]} Bd7 {[%emt 0:00:34]} 32. Ne5 {[%emt 0:00:31]} Bb5 {[%emt 0:00:26]} 33. Re1 {[%emt 0:00:39]} Bd7 {[%emt 0:00:31]} 34. Ng4 {[%emt 0:00:58]} Rf5 {[%emt 0:00:26]} 35. Ne5 {[%emt 0:00:28]} Bc8 {[%emt 0:00:29]} 36. Ng6 {[%emt 0:00:36]} R8f6 {[%emt 0:00:30]} 37. Ne5 {[%emt 0:00:30]} Kh7 {[%emt 0:00:45]} 38. Nd3 {[%emt 0:00:32]} Rf8 {[%emt 0:00:28]} 39. Ne5 {[%emt 0:00:42]} Qc5 {[%emt 0:00:26]} 40. Nd3 {[%emt 0:00:29]} Qxd4 {[%emt 0:00:28]} 41. cxd4 {[%emt 0:00:26]} R5f7 {[%emt 0:00:25]} 42. Rc1 {[%emt 0:00:32]} Ba6 {[%emt 0:00:26]} 43. Ne5 {[%emt 0:00:31]} Re7 {[%emt 0:00:32]} 44. Rec3 {[%emt 0:00:37]} Bb7 {[%emt 0:00:37]} 45. Rc7 {[%emt 0:00:33]} Rfe8 {[%emt 0:00:26]} 46. h5 {[%emt 0:00:31]} Kg8 {[%emt 0:00:36]} 47. g4 {[%emt 0:00:31]} Ba6 {[%emt 0:00:35]} 48. Kf3 {[%emt 0:00:38]} Bc4 {[%emt 0:00:27]} 49. Rc6 {[%emt 0:01:04]} b5 {[%emt 0:00:27]} 50. Re1 {[%emt 0:00:41]} a4 {[%emt 0:00:32]} 51. Ng6 {[%emt 0:00:28]} Ra7 {[%emt 0:00:29]} 52. f5 {[%emt 0:00:44]} a3 {[%emt 0:00:39]} 53. bxa3 {[%emt 0:00:39]} Rxa3+ {[%emt 0:00:27]} 54. Kf4 {[%emt 0:00:31]} b4 {[%emt 0:00:31]} 55. Rcxe6 {[%emt 0:00:49]} Rxe6 {[%emt 0:00:03]} 56. fxe6 {[%emt 0:00:33]} Ra8 {[%emt 0:00:53]} 57. e7 {[%emt 0:00:39]} Kf7 {[%emt 0:00:31]} 58. Re5 {[%emt 0:00:36]} Ke8 {[%emt 0:00:34]} 59. Re6 {[%emt 0:01:13]} Rb8 {[%emt 0:00:31]} 60. Ne5 {[%emt 0:01:01]} b3 {[%emt 0:00:26]} 61. Nc6 {[%emt 0:00:29]} b2 {[%emt 0:00:32]} 62. Rd6 {[%emt 0:00:26]} b1=Q {[%emt 0:00:31]} 63. Rd8+ {[%emt 0:00:26]} Kf7 {[%emt 0:00:26]} 64. e8=Q+ {[%emt 0:00:28]} 1/2-1/2

[Event "9th RTU Rapid 2019"]
[Site "Riga"]
[Date "2019.08.04"]
[Round "3.29"]
[White "Blinovs, Artjoms"]
[Black "Afanasiev, Vadim"]
[Result "0-1"]
[WhiteElo "1803"]
[BlackElo "2241"]
[PlyCount "98"]
[EventDate "2019.08.05"]
[EventType "swiss"]
[EventCountry "LAT"]
[TimeControl "5400+30"]
[WhiteClock "0:00:22"]
[BlackClock "0:00:34"]

1. e4 {[%emt 1:15:23]} e5 {[%emt 1:15:31]} 2. Nf3 {[%emt 0:00:26]} Nc6 {[%emt 0:00:26]} 3. Bb5 {[%emt 0:00:27]} a6 {[%emt 0:00:26]} 4. Ba4 {[%emt 0:00:26]} Nf6 {[%emt 0:00:27]} 5. O-O {[%emt 0:00:30]} Nxe4 {[%emt 0:00:28]} 6. d4 {[%emt 0:00:30]} b5 {[%emt 0:00:27]} 7. Bb3 {[%emt 0:00:26]} d5 {[%emt 0:00:26]} 8. dxe5 {[%emt 0:00:29]} Be6 {[%emt 0:00:27]} 9. a4 {[%emt 0:01:00]} b4 {[%emt 0:02:04]} 10. a5 {[%emt 0:00:55]} Nc5 {[%emt 0:00:43]} 11. Bg5 {[%emt 0:00:52]} Qd7 {[%emt 0:00:46]} 12. Nbd2 {[%emt 0:01:31]} h6 {[%emt 0:00:56]} 13. Bh4 {[%emt 0:00:47]} g5 {[%emt 0:01:24]} 14. Bg3 {[%emt 0:00:36]} Bg7 {[%emt 0:00:30]} 15. Re1 {[%emt 0:01:32]} O-O {[%emt 0:00:53]} 16. h3 {[%emt 0:01:46]} Rfe8 {[%emt 0:01:19]} 17. Nf1 {[%emt 0:01:52]} Nxb3 {[%emt 0:02:48]} 18. cxb3 {[%emt 0:00:28]} d4 {[%emt 0:02:49]} 19. N3d2 {[%emt 0:02:09]} Bd5 {[%emt 0:01:20]} 20. Qh5 {[%emt 0:03:06]} Qf5 {[%emt 0:01:29]} 21. h4 {[%emt 0:01:39]} Ne7 {[%emt 0:01:02]} 22. hxg5 {[%emt 0:01:00]} hxg5 {[%emt 0:00:34]} 23. Rac1 {[%emt 0:00:48]} Rac8 {[%emt 0:01:23]} 24. Nc4 {[%emt 0:02:05]} Bxc4 {[%emt 0:02:02]} 25. Rxc4 {[%emt 0:00:35]} c5 {[%emt 0:00:28]} 26. Rec1 {[%emt 0:00:42]} Rc6 {[%emt 0:01:00]} 27. Rxc5 {[%emt 0:00:37]} Rh6 {[%emt 0:00:26]} 28. Qf3 {[%emt 0:00:32]} Qxf3 29. gxf3 {[%emt 0:00:26]} Nf5 {[%emt 0:01:28]} 30. Rc6 {[%emt 0:00:35]} Rhe6 {[%emt 0:00:34]} 31. Nd2 {[%emt 0:00:32]} Nxg3 32. fxg3 {[%emt 0:00:26]} Rxe5 {[%emt 0:01:10]} 33. Rxa6 {[%emt 0:00:31]} f5 {[%emt 0:00:36]} 34. Rac6 {[%emt 0:00:34]} Re2 {[%emt 0:00:26]} 35. Rc8 {[%emt 0:00:28]} Kf7 {[%emt 0:00:32]} 36. R1c7+ {[%emt 0:00:30]} R8e7 {[%emt 0:00:26]} 37. Rxe7+ {[%emt 0:00:28]} Kxe7 {[%emt 0:00:27]} 38. a6 {[%emt 0:00:34]} d3 {[%emt 0:00:32]} 39. a7 {[%emt 0:00:32]} Bd4+ {[%emt 0:00:26]} 40. Kf1 {[%emt 0:00:29]} Bxa7 {[%emt 0:00:29]} 41. Rc7+ {[%emt 0:00:33]} Kf6 {[%emt 0:00:30]} 42. Rxa7 {[%emt 0:00:26]} Rxd2 {[%emt 0:00:26]} 43. Ke1 {[%emt 0:00:36]} Re2+ {[%emt 0:00:32]} 44. Kd1 {[%emt 0:00:32]} Rxb2 {[%emt 0:00:27]} 45. Ra6+ {[%emt 0:00:29]} Ke5 {[%emt 0:00:30]} 46. Rg6 {[%emt 0:00:27]} Kd4 {[%emt 0:00:33]} 47. Rxg5 {[%emt 0:00:27]} Kc3 {[%emt 0:00:30]} 48. Ke1 {[%emt 0:00:46]} Rb1+ {[%emt 0:00:33]} 49. Kf2 {[%emt 0:00:26]} d2 {[%emt 0:00:27]} 0-1

[Event "9th RTU Rapid 2019"]
[Site "Riga"]
[Date "2019.08.04"]
[Round "3.30"]
[White "Kirsanova, July"]
[Black "Martinkus, Rolandas"]
[Result "0-1"]
[WhiteElo "1745"]
[BlackElo "2155"]
[PlyCount "51"]
[EventDate "2019.08.05"]
[EventType "swiss"]
[EventCountry "LAT"]
[TimeControl "5400+30"]
[WhiteClock "0:03:51"]
[BlackClock "0:00:25"]

1. c4 {[%emt 1:15:23]} e5 {[%emt 1:15:25]} 2. Nc3 {[%emt 0:00:27]} Nc6 {[%emt 0:00:27]} 3. Nf3 {[%emt 0:00:30]} Nf6 {[%emt 0:00:37]} 4. d4 {[%emt 0:00:34]} exd4 {[%emt 0:00:34]} 5. Nxd4 {[%emt 0:00:28]} Bc5 {[%emt 0:00:33]} 6. e3 {[%emt 0:00:41]} O-O {[%emt 0:00:42]} 7. Be2 {[%emt 0:00:44]} Bxd4 {[%emt 0:00:26]} 8. exd4 {[%emt 0:00:31]} d5 {[%emt 0:00:26]} 9. cxd5 {[%emt 0:01:09]} Nxd5 {[%emt 0:00:26]} 10. O-O {[%emt 0:00:40]} Bf5 {[%emt 0:00:50]} 11. a3 {[%emt 0:01:38]} Nb6 {[%emt 0:01:32]} 12. d5 {[%emt 0:01:54]} Ne5 {[%emt 0:00:44]} 13. Bf4 {[%emt 0:00:57]} Qf6 {[%emt 0:01:44]} 14. Nb5 {[%emt 0:02:55]} c6 {[%emt 0:00:54]} 15. dxc6 {[%emt 0:00:49]} bxc6 {[%emt 0:00:27]} 16. Nc3 {[%emt 0:02:25]} Bg6 {[%emt 0:02:16]} 17. Be3 {[%emt 0:01:22]} Rfd8 {[%emt 0:00:59]} 18. Qb3 {[%emt 0:01:15]} Rab8 {[%emt 0:00:33]} 19. Qa2 {[%emt 0:01:05]} Bf5 {[%emt 0:01:35]} 20. Rfd1 {[%emt 0:01:37]} Bc2 {[%emt 0:01:37]} 21. Rxd8+ {[%emt 0:01:26]} Rxd8 {[%emt 0:00:28]} 22. Rc1 {[%emt 0:00:32]} Bd3 {[%emt 0:01:06]} 23. Qb3 {[%emt 0:01:11]} Bxe2 {[%emt 0:01:55]} 24. Nxe2 {[%emt 0:00:29]} Ng4 {[%emt 0:00:37]} 25. Bc5 {[%emt 0:01:23]} Qe5 {[%emt 0:01:46]} 26. Bxb6 {[%emt 0:00:38]} 0-1

[Event "9th RTU Rapid 2019"]
[Site "Riga"]
[Date "2019.08.04"]
[Round "3.31"]
[White "Low, Kevin"]
[Black "Breikss, Peteris"]
[Result "1-0"]
[WhiteElo "2153"]
[BlackElo "1789"]
[PlyCount "51"]
[EventDate "2019.08.05"]
[EventType "swiss"]
[EventCountry "LAT"]
[TimeControl "5400+30"]
[WhiteClock "0:00:28"]
[BlackClock "0:05:59"]

1. e4 {[%emt 1:15:22]} c5 {[%emt 1:15:21]} 2. Nf3 {[%emt 0:00:29]} Nc6 {[%emt 0:00:28]} 3. Bb5 {[%emt 0:00:26]} g6 {[%emt 0:00:29]} 4. c3 {[%emt 0:00:27]} Bg7 {[%emt 0:01:06]} 5. d4 {[%emt 0:00:58]} cxd4 {[%emt 0:00:47]} 6. cxd4 {[%emt 0:00:29]} Nf6 {[%emt 0:01:10]} 7. Nc3 {[%emt 0:00:27]} d5 {[%emt 0:00:54]} 8. e5 {[%emt 0:00:36]} Ng4 {[%emt 0:00:59]} 9. O-O {[%emt 0:01:36]} h5 {[%emt 0:01:26]} 10. Ne1 {[%emt 0:02:01]} Be6 {[%emt 0:01:47]} 11. Nd3 {[%emt 0:00:47]} Rc8 {[%emt 0:03:31]} 12. Nc5 {[%emt 0:00:55]} Qb6 {[%emt 0:00:55]} 13. Nxe6 {[%emt 0:04:31]} fxe6 {[%emt 0:00:27]} 14. Qd3 {[%emt 0:01:02]} Kf7 {[%emt 0:00:50]} 15. Ne2 {[%emt 0:00:59]} Nb4 {[%emt 0:03:13]} 16. Qf3+ {[%emt 0:00:26]} Kg8 {[%emt 0:00:38]} 17. Ba4 {[%emt 0:00:28]} Nc2 {[%emt 0:01:09]} 18. Bxc2 {[%emt 0:00:32]} Rxc2 {[%emt 0:00:27]} 19. h3 {[%emt 0:00:43]} Rxe2 {[%emt 0:01:33]} 20. Qxe2 {[%emt 0:00:28]} Qxd4 {[%emt 0:00:42]} 21. hxg4 {[%emt 0:00:35]} hxg4 {[%emt 0:01:11]} 22. Rd1 {[%emt 0:00:38]} Qxe5 {[%emt 0:00:39]} 23. Qxe5 {[%emt 0:00:28]} Bxe5 {[%emt 0:00:27]} 24. Bg5 {[%emt 0:00:43]} Bxb2 {[%emt 0:01:05]} 25. Rab1 {[%emt 0:00:26]} Be5 {[%emt 0:00:48]} 26. Rxb7 {[%emt 0:00:29]} 1-0